fUST/lending_fUST_20251127
["ID","MTS","AMOUNT","RATE_DAILY","PERIOD"]
[394939665,1764174643484,-163195.86822254,0.0002999,2]
[394939666,1764174643495,-852.99054321,0.0002999,2]
[394939667,1764174643507,-4064.66011435,0.0002999,2]
[394939668,1764174643519,-15549.61920322,0.0002999,2]
[394939669,1764174643531,-7791.60384999,0.0002999,2]
[394939670,1764174643542,-721.77980252,0.0002999,2]
[394939671,1764174643553,-18012.2917058,0.0002999,2]
[394939672,1764174643565,-45846.17978837,0.0002999,2]
[394939673,1764174643575,-599.129492,0.0002999,7]
[394939674,1764174643584,-599.129492,0.0002999,7]
[394939675,1764174643593,-599.129492,0.0002999,7]
[394939676,1764174643604,-599.129492,0.0002999,7]
[394939677,1764174643614,-151.0,0.0002999,7]
[394939678,1764174643624,-151.0,0.0002999,7]
[394939679,1764174643634,-1455.30224363,0.0003,2]
[394939714,1764174646775,-1233.79,0.00028757,10]
[394939715,1764174646785,-11924.26902132,0.0003,2]
[394939716,1764174666725,-363.98261601,0.0001431,2]
[394939717,1764174666747,-1024.957,0.00014454,2]
[394939718,1764174666769,-300.0,0.00014688,2]
[394939719,1764174666797,-500.0,0.00014689,2]
[394939720,1764174666825,-500.0,0.00014689,2]
[394939721,1764174666857,-500.0,0.00014689,2]
[394939722,1764174666884,-500.0,0.00014689,2]
[394939723,1764174666917,-500.0,0.00014689,2]
[394939724,1764174666945,-500.0,0.00014689,2]
[394939725,1764174666973,-500.0,0.00014689,2]
[394939726,1764174667000,-500.0,0.00014689,2]
[394939727,1764174707791,-414.0,0.00016221,2]
[394939728,1764174707817,-990.0,0.00017454,2]
[394939729,1764174722396,142907.06038399,0.00012229,2]
[394939730,1764174841484,-500.0,0.00012228,2]
[394939731,1764174841509,-500.0,0.00012228,2]
[394939732,1764174841535,-500.0,0.00012228,2]
[394939733,1764174841560,-208.53879982,0.00012228,2]
[394939734,1764174841588,-490.45028851,0.00012228,2]
[394939735,1764174841617,-500.0,0.00012228,2]
[394939736,1764174841642,-500.0,0.00012228,2]
[394939737,1764174841666,-500.0,0.00012228,2]
[394939738,1764174841695,-500.0,0.00012228,2]
[394939739,1764174841720,-400.77620057,0.00012228,2]
[394939740,1764174841750,-500.0,0.00012228,2]
[394939741,1764174841778,-500.0,0.00012228,2]
[394939742,1764174841808,-500.0,0.00012228,2]
[394939743,1764174841838,-500.0,0.00012228,2]
[394939744,1764174841874,-500.0,0.00012228,2]
[394939745,1764174841903,-500.0,0.00012228,2]
[394939746,1764174841932,-500.0,0.00012228,2]
[394939747,1764174841961,-500.0,0.00012228,2]
[394939748,1764174841988,-500.0,0.00012228,2]
[394939749,1764174842016,-500.0,0.00012228,2]
[394939750,1764174842043,-500.0,0.00012228,2]
[394939751,1764174842075,-500.0,0.00012228,2]
[394939752,1764174842104,-235.94740341,0.00012228,2]
[394939753,1764174842131,-500.0,0.00012228,2]
[394939754,1764174842156,-150.0,0.00012228,2]
[394939755,1764174842183,-88514.28730769,0.00012229,2]
[394939756,1764174872313,-100000.0,0.00012229,2]
[394939757,1764174876027,-100000.0,0.00012229,2]
[394939823,1764175622612,500.0,0.00011,2]
[394939824,1764175638119,-5714.2795918,0.0001124,2]
[394939825,1764175638146,-500.0,0.00012007,2]
[394939826,1764175638171,-500.0,0.00012007,2]
[394939827,1764175638196,-500.0,0.00012007,2]
[394939828,1764175638222,-500.0,0.00012007,2]
[394939829,1764175638246,-500.0,0.00012007,2]
[394939830,1764175638271,-500.0,0.00012007,2]
[394939831,1764175638295,-500.0,0.00012007,2]
[394939832,1764175638320,-382.18948068,0.00012007,2]
[394939833,1764175638345,-500.0,0.00012007,2]
[394939834,1764175638367,-254.48,0.00012008,2]
[394939835,1764175638386,-254.48,0.00012008,2]
[394939836,1764175638406,-254.47,0.00012008,2]
[394939837,1764175638433,-150.0,0.00012008,2]
[394939838,1764175638461,-248.0,0.00012008,2]
[394939839,1764175638487,-484.06213198,0.00012173,2]
[394939840,1764175638508,-212.1192108,0.00012228,2]
[394939841,1764175638531,-500.0,0.00012228,2]
[394939842,1764175638556,-242.02132304,0.00012228,2]
[394939843,1764175638579,-500.0,0.00012228,2]
[394939844,1764175638603,-500.0,0.00012228,2]
[394939845,1764175638625,-500.0,0.00012228,2]
[394939846,1764175638651,-208.0,0.00012228,2]
[394939847,1764175638676,-1200.0,0.00012228,2]
[394939848,1764175638704,-19611.61484376,0.00012229,2]
[394939876,1764175831634,-500.0,0.00012128,2]
[394939878,1764175831643,-375.89904586,0.00012129,2]
[394939893,1764175831772,-1864.47636112,0.00012129,2]
[394939977,1764175837905,-569.41492612,0.00012128,2]
[394939978,1764175837915,-500.0,0.00012128,2]
[394939979,1764175837925,-2843.44247189,0.00012129,2]
[394939980,1764175837936,-920.0098551,0.00012129,2]
[394939981,1764175837951,-625.58105007,0.00012129,2]
[394939991,1764175839843,-671.77936835,0.00012129,2]
[394939992,1764175839855,-12823.22942917,0.00012129,2]
[394939993,1764175839898,-30592.90438003,0.00012129,2]
[394939994,1764175840266,-60614.76827624,0.00012129,2]
[394939995,1764175840277,-5618.83711693,0.00012129,2]
[394940008,1764175843818,-3040.92075901,0.00012129,2]
[394940009,1764175843829,-1318.70184405,0.00012129,2]
[394940010,1764175843840,-36984.22489589,0.00012129,2]
[394940029,1764175846334,-361.43472412,0.00012129,2]
[394940030,1764175846348,-10313.11202671,0.00012129,2]
[394940031,1764175846400,-24631.34392603,0.00012129,2]
[394940032,1764175846411,-704.20971272,0.00012129,2]
[394940033,1764175846428,-1784.96044974,0.00012129,2]
[394940034,1764175848931,219.70092148,0.00010383,2]
[394940036,1764176096261,268.25203259,0.00010383,2]
[394940039,1764176234792,714.0,0.00010991,2]
[394940040,1764176250188,935.0,0.00010991,2]
[394940042,1764176421733,1000.0,0.0001,2]
[394940043,1764176465794,21882.51180895,0.00010989,2]
[394940044,1764176474552,14001.6524369,0.00010948,2]
[394940060,1764176995630,178.95387179,0.00010383,2]
[394940143,1764177032284,-300.0,0.00011094,2]
[394940145,1764177032294,-300.0,0.00011094,2]
[394940147,1764177032303,-300.0,0.00011094,2]
[394940149,1764177032312,-300.0,0.00011094,2]
[394940151,1764177032322,-1200.0,0.00011094,2]
[394940153,1764177032331,-241.0,0.00011094,2]
[394940155,1764177032341,-500.0,0.00011094,2]
[394940157,1764177032350,-291.64008497,0.00011094,2]
[394940159,1764177032359,-492.02132304,0.00011094,2]
[394940161,1764177032368,-500.0,0.00011094,2]
[394940163,1764177032377,-1200.0,0.00011095,2]
[394940164,1764177032387,-500.0,0.00011095,2]
[394940166,1764177032396,-500.0,0.00011095,2]
[394940168,1764177032405,-500.0,0.00011095,2]
[394940171,1764177032415,-500.0,0.00011095,2]
[394940172,1764177032424,-500.0,0.00011095,2]
[394940174,1764177032433,-500.0,0.00011095,2]
[394940177,1764177032442,-500.0,0.00011095,2]
[394940178,1764177032452,-500.0,0.00011095,2]
[394940180,1764177032461,-500.0,0.00011095,2]
[394940182,1764177032470,-500.0,0.00011095,2]
[394940184,1764177032478,-500.0,0.00011095,2]
[394940186,1764177032487,-500.0,0.00011095,2]
[394940188,1764177032497,-500.0,0.00011095,2]
[394940190,1764177032506,-500.0,0.00011095,2]
[394940192,1764177032515,-500.0,0.00011095,2]
[394940194,1764177032526,-434.30213009,0.00011095,2]
[394940196,1764177032535,-500.0,0.00011095,2]
[394940198,1764177032544,-500.0,0.00011095,2]
[394940200,1764177032554,-500.0,0.00011095,2]
[394940202,1764177032563,-500.0,0.00011095,2]
[394940204,1764177032573,-500.0,0.00011095,2]
[394940206,1764177032582,-500.0,0.00011095,2]
[394940208,1764177032591,-499.99999999,0.00011095,2]
[394940210,1764177032601,-500.0,0.00011095,2]
[394940212,1764177032610,-150.0,0.00011097,2]
[394940214,1764177032619,-616.3402919,0.00011098,2]
[394940240,1764177037878,-500.0,0.00011094,2]
[394940241,1764177037888,-500.0,0.00011094,2]
[394940242,1764177037897,-500.0,0.00011094,2]
[394940243,1764177037909,-150.0,0.00011096,2]
[394940244,1764177037919,-2967.06328202,0.00011098,2]
[394940245,1764177037931,-340.33332483,0.00011098,2]
[394940246,1764177037943,-11061.25177335,0.00011098,2]
[394940247,1764177037986,-1733.14310408,0.00011098,2]
[394940248,1764177037996,-500.0,0.00011098,2]
[394940249,1764177038006,-500.0,0.00011098,2]
[394940250,1764177038015,-500.0,0.00011098,2]
[394940251,1764177038024,-500.0,0.00011098,2]
[394940252,1764177038034,-500.0,0.00011099,2]
[394940253,1764177038043,-500.0,0.00011099,2]
[394940254,1764177038052,-500.0,0.00011101,2]
[394940255,1764177038062,-10749.68092559,0.00011103,2]
[394940256,1764177038074,-1753.52,0.00011103,2]
[394940298,1764177040040,-626.66394177,0.00011103,2]
[394940304,1764177040091,-335.63293579,0.00011103,2]
[394940307,1764177040103,-1132.20624869,0.00011103,2]
[394940309,1764177040115,-248.31996856,0.00011103,2]
[394940311,1764177040124,-500.0,0.00011173,2]
[394940313,1764177040133,-371.18545151,0.00011173,2]
[394940734,1764177046119,-500.0,0.00011094,2]
[394940735,1764177046129,-500.0,0.00011094,2]
[394940736,1764177046138,-500.0,0.00011094,2]
[394940737,1764177046148,-500.0,0.00011094,2]
[394940738,1764177046158,-500.0,0.00011094,2]
[394940739,1764177046168,-500.0,0.00011094,2]
[394940740,1764177046178,-500.0,0.00011094,2]
[394940741,1764177046187,-500.0,0.00011094,2]
[394940742,1764177046197,-500.0,0.00011094,2]
[394940743,1764177046207,-500.0,0.00011094,2]
[394940744,1764177046216,-275.59063587,0.00011094,2]
[394940745,1764177089381,175.37108096,0.00010383,2]
[394940746,1764177099726,300.0,0.00010982,2]
[394940747,1764177115374,300.0,0.00010982,2]
[394940748,1764177123200,226.27785124,0.00010983,2]
[394940749,1764177138530,226.27785124,0.00010982,2]
[394940750,1764177706138,206.69220789,0.0001099,2]
[394940751,1764177897638,236.19510658,0.00010383,2]
[394940760,1764178195598,236.31314511,0.00010383,2]
[394940860,1764178238100,-187.78006525,0.00011081,2]
[394940861,1764178238110,-241.0,0.00011083,2]
[394940862,1764178238120,-500.0,0.00011084,2]
[394940863,1764178238130,-325.60447097,0.00011084,2]
[394940864,1764178238139,-500.0,0.00011084,2]
[394940865,1764178238149,-500.0,0.00011084,2]
[394940866,1764178238159,-257.40268889,0.00011084,2]
[394940867,1764178238171,-500.0,0.00011084,2]
[394940868,1764178238180,-500.0,0.00011084,2]
[394940869,1764178238190,-500.0,0.00011084,2]
[394940870,1764178238200,-500.0,0.00011084,2]
[394940871,1764178238211,-300.0,0.00011084,2]
[394940872,1764178238222,-300.0,0.00011084,2]
[394940873,1764178238236,-300.0,0.00011084,2]
[394940874,1764178238246,-300.0,0.00011084,2]
[394940875,1764178238256,-1200.0,0.00011084,2]
[394940876,1764178238267,-150.0,0.00011085,2]
[394940877,1764178238277,-50000.0,0.00011085,2]
[394940878,1764178238287,-1200.0,0.00011085,2]
[394940879,1764178238297,-500.0,0.00011087,2]
[394940880,1764178238308,-500.0,0.00011088,2]
[394940881,1764178238319,-500.0,0.00011089,2]
[394940882,1764178238329,-500.0,0.00011089,2]
[394940883,1764178238338,-500.0,0.00011089,2]
[394940884,1764178238348,-254.8247352,0.000111,2]
[394940885,1764178238358,-5875.219193,0.000111,2]
[394940886,1764178238368,-254.8247351,0.000111,2]
[394940887,1764178238378,-300.0,0.00011323,2]
[394940888,1764178238388,-300.0,0.00011323,2]
[394940889,1764178238398,-300.0,0.00011323,2]
[394940890,1764178238407,-300.0,0.00011323,2]
[394940891,1764178238417,-300.0,0.00011323,2]
[394940892,1764178238430,-300.0,0.00011323,2]
[394940893,1764178238440,-300.0,0.00011323,2]
[394940894,1764178238450,-300.0,0.00011323,2]
[394940895,1764178238459,-300.0,0.00011323,2]
[394940896,1764178238469,-300.0,0.00011323,2]
[394940897,1764178238479,-300.0,0.00011323,2]
[394940898,1764178238489,-300.0,0.00011323,2]
[394940899,1764178238499,-300.0,0.00011323,2]
[394940900,1764178238508,-300.0,0.00011323,2]
[394940901,1764178238518,-300.0,0.00011323,2]
[394940902,1764178238527,-500.0,0.00011362,2]
[394940903,1764178238539,-600.0,0.00011548,2]
[394940904,1764178238549,-194.72792766,0.00011629,2]
[394940905,1764178238558,-500.0,0.00011636,2]
[394940906,1764178238568,-500.0,0.0001191,2]
[394940907,1764178238577,-151.0,0.00012,2]
[394940908,1764178238586,-151.0,0.00012,2]
[394940909,1764178238596,-500.0,0.00012007,2]
[394940910,1764178238605,-381.72,0.00012008,2]
[394940911,1764178238615,-381.72,0.00012008,2]
[394940912,1764178238624,-500.0,0.00012128,2]
[394940913,1764178238634,-183.05,0.00012128,2]
[394940914,1764178238643,-183.05,0.00012128,2]
[394940915,1764178238653,-183.05,0.00012128,2]
[394940916,1764178238663,-183.05,0.00012128,2]
[394940917,1764178238674,-183.05,0.00012128,2]
[394940918,1764178238684,-183.05,0.00012128,2]
[394940919,1764178238693,-183.04,0.00012128,2]
[394940920,1764178238703,-225.18697532,0.00012177,2]
[394940921,1764178238713,-420.0,0.00012179,2]
[394940922,1764178238722,-420.0,0.00012179,2]
[394940923,1764178238732,-420.0,0.00012179,2]
[394940924,1764178238742,-420.0,0.00012179,2]
[394940925,1764178238751,-1680.0,0.0001218,2]
[394940926,1764178238761,-500.0,0.00012184,2]
[394940927,1764178238771,-1680.0,0.00012192,2]
[394940928,1764178238781,-500.0,0.00012328,2]
[394940929,1764178238791,-2095.6,0.00012329,2]
[394940930,1764178238801,-1746.33,0.00012329,2]
[394940931,1764178238811,-1455.27,0.00012329,2]
[394940932,1764178238821,-1212.73,0.00012329,2]
[394940933,1764178238832,-500.0,0.00012458,2]
[394940934,1764178238841,-1310.9385994,0.00012511,2]
[394940935,1764178238851,-720.0,0.00012703,2]
[394940936,1764178238860,-500.0,0.00012732,2]
[394940937,1764178238869,-627.02214166,0.00012733,2]
[394940938,1764178238878,-446.40927356,0.0001275,2]
[394940939,1764178238887,-292.5099396,0.00012826,2]
[394940940,1764178238897,-1999.999999,0.00013,2]
[394940941,1764178238907,-500.0,0.00013006,2]
[394940942,1764178238916,-446.40927356,0.00013064,2]
[394940943,1764178238928,-177.0,0.00013085,2]
[394940944,1764178238937,-500.0,0.0001328,2]
[394940945,1764178238947,-446.40927356,0.00013378,2]
[394940946,1764178238956,-388.0,0.00013382,2]
[394940947,1764178238967,-587.0,0.00013382,2]
[394940948,1764178238976,-511.0,0.00013382,2]
[394940949,1764178238986,-2002.0,0.00013383,2]
[394940950,1764178238996,-2351.0,0.00013411,2]
[394940951,1764178239006,-500.0,0.00013424,2]
[394940952,1764178239016,-184.10016293,0.00013554,2]
[394940953,1764178239025,-681.27767506,0.00013598,2]
[394940954,1764178239035,-151.0,0.000136,2]
[394940955,1764178239045,-500.0,0.00013673,2]
[394940956,1764178239055,-502.69696859,0.00013673,2]
[394940957,1764178239064,-500.0,0.00013673,2]
[394940958,1764178239075,-500.0,0.00013673,2]
[394940959,1764178239086,-500.0,0.00013673,2]
[394940960,1764178239095,-470.26798814,0.00013673,2]
[394940961,1764178239107,-400.78005019,0.00013673,2]
[394940962,1764178239117,-500.0,0.00013673,2]
[394940963,1764178239128,-508.89375394,0.00013673,2]
[394940964,1764178239140,-516.34683712,0.00013673,2]
[394940965,1764178239150,-500.0,0.00013673,2]
[394940966,1764178239161,-500.0,0.00013673,2]
[394940967,1764178239176,-500.0,0.00013673,2]
[394940968,1764178239187,-500.0,0.00013673,2]
[394940969,1764178239198,-500.0,0.00013673,2]
[394940970,1764178239208,-500.0,0.00013673,2]
[394940971,1764178239222,-500.0,0.00013673,2]
[394940972,1764178239236,-500.0,0.00013673,2]
[394940973,1764178239248,-500.0,0.00013673,2]
[394940974,1764178239259,-500.0,0.00013673,2]
[394940975,1764178239272,-500.0,0.00013673,2]
[394940976,1764178239282,-526.22279325,0.00013673,2]
[394940977,1764178239292,-500.54103177,0.00013673,2]
[394940978,1764178239304,-502.53661297,0.00013673,2]
[394940979,1764178239314,-446.40927356,0.00013692,2]
[394940980,1764178239324,-500.0,0.00013698,2]
[394940981,1764178239334,-500.0,0.00013698,2]
[394940982,1764178239345,-202.49326811,0.00013698,2]
[394940983,1764178239355,-500.0,0.00013698,2]
[394940984,1764178239366,-500.0,0.00013698,2]
[394940985,1764178239377,-500.0,0.00013698,2]
[394940986,1764178239388,-500.0,0.00013698,2]
[394940987,1764178239398,-500.0,0.00013698,2]
[394940988,1764178239408,-500.0,0.00013698,2]
[394940989,1764178239417,-500.0,0.00013698,2]
[394940990,1764178239429,-330.90605326,0.00013698,2]
[394940991,1764178239439,-500.0,0.00013698,2]
[394940992,1764178239449,-500.0,0.00013698,2]
[394940993,1764178239459,-500.0,0.00013698,2]
[394940994,1764178239468,-500.0,0.00013698,2]
[394940995,1764178239478,-500.0,0.00013698,2]
[394940996,1764178239488,-500.0,0.00013698,2]
[394940997,1764178239497,-500.0,0.00013698,2]
[394940998,1764178239506,-500.0,0.00013698,2]
[394940999,1764178239515,-500.0,0.00013698,2]
[394941000,1764178239524,-500.0,0.00013698,2]
[394941001,1764178239534,-2930.18,0.00013698,2]
[394941002,1764178239543,-2930.18,0.00013698,2]
[394941003,1764178239552,-2930.18,0.00013698,2]
[394941004,1764178239561,-2930.18,0.00013698,2]
[394941005,1764178239570,-2930.18,0.00013698,2]
[394941006,1764178239579,-2930.18,0.00013698,2]
[394941007,1764178239588,-2930.18,0.00013698,2]
[394941008,1764178239598,-529.1554099,0.00013698,2]
[394941009,1764178239607,-1000.0,0.00013698,2]
[394941010,1764178239616,-1000.0,0.00013698,2]
[394941011,1764178239625,-1000.0,0.00013698,2]
[394941012,1764178239634,-1000.0,0.00013698,2]
[394941013,1764178239644,-1000.0,0.00013698,2]
[394941015,1764178239654,-1000.0,0.00013698,2]
[394941017,1764178239663,-1000.0,0.00013698,2]
[394941019,1764178239674,-1000.0,0.00013698,2]
[394941021,1764178239683,-794.71164369,0.00013698,2]
[394941022,1764178239704,-205.28835631,0.00013698,2]
[394941023,1764178239713,-226.997379,0.00013698,2]
[394941024,1764178239722,-226.997379,0.00013698,2]
[394941025,1764178239731,-226.997379,0.00013698,2]
[394941026,1764178239741,-1000.0,0.00013699,2]
[394941027,1764178239752,-1500.0,0.00013699,2]
[394941028,1764178239761,-151.0,0.000137,2]
[394941030,1764178239772,-500.0,0.00013719,2]
[394941032,1764178239781,-1000.0,0.00013719,2]
[394941033,1764178239791,-864.0,0.00013974,2]
[394941034,1764178239800,-446.85568283,0.00014006,2]
[394941035,1764178239810,-1000.0,0.00014221,2]
[394941036,1764178239820,-1000.0,0.00014221,2]
[394941037,1764178239829,-1000.0,0.00014221,2]
[394941038,1764178239839,-387.45550502,0.00014221,2]
[394941039,1764178239849,-1000.0,0.00014221,2]
[394941040,1764178239858,-1000.0,0.00014221,2]
[394941041,1764178239867,-1000.0,0.00014221,2]
[394941042,1764178239876,-1000.0,0.00014221,2]
[394941044,1764178239885,-1000.0,0.00014221,2]
[394941045,1764178239894,-1000.0,0.00014221,2]
[394941046,1764178239904,-1000.0,0.00014221,2]
[394941047,1764178239914,-519.55158055,0.00014221,2]
[394941048,1764178239925,-151.0,0.000143,2]
[394941050,1764178239935,-215.47395117,0.00014383,2]
[394941052,1764178239944,-1000.0,0.000145,2]
[394941054,1764178239953,-1000.0,0.000145,2]
[394941056,1764178239962,-1000.0,0.000145,2]
[394941058,1764178239972,-1000.0,0.000145,2]
[394941059,1764178239981,-1000.0,0.000145,2]
[394941061,1764178239990,-1000.0,0.000145,2]
[394941063,1764178239999,-1000.0,0.000145,2]
[394941065,1764178240009,-1000.0,0.000145,2]
[394941067,1764178240019,-1000.0,0.000145,2]
[394941069,1764178240027,-1000.0,0.000145,2]
[394941071,1764178240037,-485.429875,0.000145,2]
[394941073,1764178240046,-500.0,0.00014699,2]
[394941075,1764178240055,-2930.18,0.00014699,2]
[394941077,1764178240065,-1000.0,0.00014699,2]
[394941079,1764178240075,-600.0,0.00014704,2]
[394941081,1764178240084,-1277.0,0.00014752,2]
[394941083,1764178240093,-1500.0,0.00014768,2]
[394941085,1764178240102,-164.88370563,0.00014768,2]
[394941087,1764178240111,-1618.45588716,0.00014768,2]
[394941089,1764178240120,-834.2885093,0.00014768,2]
[394941091,1764178240129,-1500.0,0.00014768,2]
[394941092,1764178240138,-1500.0,0.00014768,2]
[394941093,1764178240147,-1500.0,0.00014768,2]
[394941094,1764178240156,-1500.0,0.00014768,2]
[394941095,1764178240165,-1500.0,0.00014768,2]
[394941096,1764178240176,-1500.0,0.00014768,2]
[394941097,1764178240185,-178.975432,0.00015068,2]
[394941098,1764178240194,-204.0,0.00015085,2]
[394941099,1764178240203,-151.0,0.000152,2]
[394941100,1764178240212,-226.997379,0.00015316,2]
[394941101,1764178240226,-226.997379,0.00015316,2]
[394941102,1764178240235,-226.997379,0.00015316,2]
[394941103,1764178240244,-500.0,0.00015316,2]
[394941104,1764178240253,-1791.16085707,0.00015316,2]
[394941105,1764178240265,-2000.0,0.00015316,2]
[394941106,1764178240275,-2000.0,0.00015316,2]
[394941107,1764178240284,-1011.17422347,0.00015316,2]
[394941109,1764178240293,-2000.0,0.00015316,2]
[394941110,1764178240303,-2000.0,0.00015316,2]
[394941112,1764178240312,-1000.0,0.00015371,2]
[394941114,1764178240321,-151.0,0.000154,2]
[394941115,1764178240331,-2017.65020776,0.00015864,2]
[394941117,1764178240340,-459.79337671,0.00015864,2]
[394941118,1764178240350,-2500.0,0.00015864,2]
[394941119,1764178240361,-393.93773721,0.00015864,2]
[394941120,1764178240371,-160.0,0.00015918,2]
[394941121,1764178240380,-500.0,0.00016135,2]
[394941122,1764178240389,-1000.0,0.00016135,2]
[394941123,1764178240399,-990.0,0.00016136,2]
[394941124,1764178240408,-630.0,0.00016136,2]
[394941125,1764178240417,-414.0,0.00016136,2]
[394941126,1764178240429,-150.303,0.00016221,2]
[394941127,1764178240438,-150.0,0.00016221,2]
[394941128,1764178240447,-150.173,0.00016221,2]
[394941129,1764178240457,-150.135,0.00016221,2]
[394941130,1764178240466,-2310.20845471,0.00016412,2]
[394941131,1764178240476,-283.58581379,0.00016438,2]
[394941132,1764178240485,-181.34,0.0001644,2]
[394941133,1764178240494,-181.34,0.0001644,2]
[394941134,1764178240503,-181.34,0.0001644,2]
[394941135,1764178240512,-181.34,0.0001644,2]
[394941136,1764178240522,-260.0,0.00016466,2]
[394941137,1764178240531,-2401.0,0.00016632,2]
[394941138,1764178240540,-151.0,0.000168,2]
[394941139,1764178240550,-1000.0,0.00016908,2]
[394941140,1764178240559,-244.0,0.00016908,2]
[394941141,1764178240569,-151.0,0.00016908,2]
[394941142,1764178240578,-151.0,0.00016908,2]
[394941143,1764178240588,-360.0,0.00017014,2]
[394941144,1764178240597,-681.27767503,0.00017023,2]
[394941145,1764178240606,-231.0,0.00017085,2]
[394941146,1764178240615,-151.0,0.000171,2]
[394941147,1764178240624,-460.0,0.00017562,2]
[394941148,1764178240633,-500.0,0.00017973,2]
[394941149,1764178240643,-226.997379,0.0001799,2]
[394941150,1764178240652,-226.997379,0.0001799,2]
[394941151,1764178240661,-226.997379,0.0001799,2]
[394941152,1764178240672,-350.0,0.00018001,2]
[394941153,1764178240682,-560.0,0.0001811,2]
[394941154,1764178240691,-413.0,0.00018215,2]
[394941155,1764178240699,-2930.18,0.00018317,2]
[394941156,1764178240709,-151.0,0.000184,2]
[394941157,1764178240719,-178.975432,0.00018493,2]
[394941158,1764178240729,-1000.0,0.00018521,2]
[394941159,1764178240739,-1000.0,0.00018599,10]
[394941160,1764178240747,-492.0,0.00018599,10]
[394941161,1764178240756,-620.0,0.00018658,2]
[394941162,1764178240765,-151.0,0.000188,2]
[394941163,1764178240775,-100000.0,0.0001899,2]
[394941164,1764178240784,-160.0,0.00019,2]
[394941165,1764178240793,-1500.0,0.00019068,2]
[394941166,1764178240803,-258.0,0.00019085,2]
[394941167,1764178240813,-990.0,0.00019136,2]
[394941168,1764178240823,-630.0,0.00019136,2]
[394941169,1764178240831,-414.0,0.00019136,2]
[394941170,1764178240842,-150.0,0.00019221,2]
[394941171,1764178240851,-272.5,0.00019538,7]
[394941172,1764178240861,-622.5,0.00019538,7]
[394941173,1764178240870,-2000.0,0.00019616,2]
[394941174,1764178240880,-500.0,0.00019973,2]
[394941175,1764178240889,-500.0,0.00019973,2]
[394941176,1764178240899,-500.0,0.00019973,2]
[394941177,1764178240908,-1000.0,0.0002,6]
[394941178,1764178240917,-151.0,0.0002,2]
[394941179,1764178240928,-527.95866559,0.0002,2]
[394941180,1764178240937,-2500.0,0.00020164,2]
[394941181,1764178240946,-500.0,0.00020187,2]
[394941182,1764178240955,-1000.0,0.00020187,2]
[394941183,1764178240965,-1500.0,0.00020187,2]
[394941184,1764178240974,-681.27767503,0.00020448,2]
[394941185,1764178240984,-1000.0,0.00020459,10]
[394941186,1764178240993,-791.0,0.00020459,10]
[394941187,1764178241002,-151.0,0.000205,3]
[394941188,1764178241012,-1000.0,0.00020521,2]
[394941189,1764178241021,-826.00000005,0.00020521,2]
[394941190,1764178241031,-1000.03364208,0.00020521,2]
[394941191,1764178241042,-3000.0,0.00020712,2]
[394941192,1764178241052,-500.0,0.00020988,2]
[394941193,1764178241061,-2930.18,0.00020988,2]
[394941194,1764178241071,-809.84126538,0.00020988,2]
[394941195,1764178241080,-1106.952347,0.00021068,2]
[394941196,1764178241089,-285.0,0.00021085,2]
[394941197,1764178241099,-3500.0,0.0002126,2]
[394941198,1764178241108,-2930.18,0.00021354,2]